Cogmind - Beta 17.1 @@@ ROGUE MODE // 2026.08.31 @ 15:59:09 Player: Talon Java Result: Destroyed by 6J-9LQ(R) with Subdweller Machine Gun Performance ------------- Evolutions (0) 0 Regions Visited (2) 400 Robots Destroyed (9) 45 Value Destroyed (194) 194 Prototype IDs (14) 280 Alien Tech Used (0) 0 Bonus (0) 0 TOTAL SCORE: 919 Bonus ------- None Cogmind --------- Core Integrity 0/250 Matter 225/300 Energy 58/100 System Corruption 0% Temperature Cool (1) Movement Treading (160) Location -10/Subcaves Parts ------- > --- POWER (1) -------- (None) > --- PROPULSION (2) --- Light Treads > --- UTILITY (2) ------ Small Storage Unit Seismic Detector > --- WEAPON (2) ------- (None) > --- INVENTORY (8) ---- Improved Heat Sink Rainbow Chip Flamer Flamer Peak State ------------ > --- POWER ------------ Light Ion Engine > --- PROPULSION ------- Aluminum Leg Aluminum Leg > --- UTILITY ---------- Improved Heat Sink Small Storage Unit > --- WEAPON ----------- Salvaging Laser Subdweller Laser > --- INVENTORY -------- Light Treads Light Treads Seismic Detector Seismic Detector Rainbow Chip Assault Rifle Flamer Flamer [Rating: 12] Favorites ----------- Power Light Ion Engine Engine Light Ion Engine Propulsion Aluminum Leg Treads Light Treads Leg Aluminum Leg Utility Small Storage Unit Device Seismic Detector Storage Small Storage Unit Weapon Salvaging Laser Energy Gun Salvaging Laser Ballistic Gun Assault Rifle Special Weapon Flamer Build | -11 -10 -10 ------- Run | Yrd Mat Sub Slots Evolved . | . . . Power . | . . . Propulsion . | . . . Utility . | . . . Weapon . | . . . Parts Attached 15 | 1 3 11 Power 2 | . 1 1 Engine 2 | . 1 1 Core . | . . . Reactor . | . . . Propulsion 2 | . . 2 Treads 2 | . . 2 Leg . | . . . Wheel . | . . . Hover . | . . . Flight . | . . . Utility 4 | 1 1 2 Device 4 | 1 1 2 Storage . | . . . Processor . | . . . Hackware . | . . . Protection . | . . . Artifact . | . . . Weapon 7 | . 1 6 Energy Gun 4 | . . 4 Energy Cannon . | . . . Ballistic Gun 1 | . 1 . Ballistic Cannon . | . . . Launcher . | . . . Special Weapon 2 | . . 2 Impact Weapon . | . . . Slashing Weapon . | . . . Piercing Weapon . | . . . Special Melee Weapon . | . . . Unidentified Prototypes . | . . . Parts Lost 9 | . . 9 Power 2 | . . 2 Propulsion 3 | . . 3 Utility 1 | . . 1 Weapon 3 | . . 3 Highest Loss Streak 7 | . . 7 To Critical Strikes . | . . . Average Backups 7 | 6 6 7 Power . | 1 1 . Propulsion 2 | 4 2 2 Utility 1 | . 1 2 Weapon 2 | 1 1 2 Tool/Special . | . . . Unused Backups 14 | 6 2 6 Power 1 | 1 . . Propulsion 7 | 2 2 3 Utility 2 | 1 . 1 Weapon 4 | 2 . 2 Tool/Special . | . . . Average Slot Usage (%) 98 | . 97 98 Engine 13 | . 13 13 Leg 27 | . 28 27 Device 13 | . 12 13 Storage 14 | . 14 14 Energy Gun 18 | . 14 18 Ballistic Gun 5 | . 14 4 Special Weapon 3 | . . 4 Peak Build Rating 12 | 7 7 12 Average Rating 8 | 6 6 9 On Entrance 6 | 6 7 7 Avg Prop Armor Cover (%) . | . . . Naked Turns . | . . . Heaviest Build 14 | 11 12 14 Greatest Support 40 | 20 20 40 Greatest Overweight (x) . | . . . Average Overweight (x) . | . . . Largest Inventory Capacity 8 | 8 8 8 Average Capacity 8 | 8 8 8 Most Carried 8 | 7 8 8 Average Carried 7 | 6 6 7 Final Capacity 8 | 8 8 8 Final Carried 7 | 7 7 4 Class Distribution -------------------- 100% | Mutant Dominant Class ---------------- Mutant | -10/Materials Mutant | -10/Subcaves Resources | -11 -10 -10 ----------- Run | Yrd Mat Sub Matter Collected 329 | 229 30 70 Remotely . | . . . Salvage Created 299 | 107 . 192 Parts 18 | 10 . 8 Haulers Intercepted . | . . . Recyclers Shooed 1 | 1 . . Parts Field Recycled . | . . . Retrieved Matter . | . . . Parts Self-Destructed 5 | . . 5 Prevented . | . . . Parts Restored . | . . . Kills | -11 -10 -10 ------- Run | Yrd Mat Sub Combat Hostiles Destroyed 4 | . . 4 Guns 2 | . . 2 Cannons 2 | . . 2 Classes Destroyed 4 | 1 . 3 Tunneler 5 | 5 . . Grunt 1 | . . 1 Sentry 1 | . . 1 Subdweller 2 | . . 2 Best Kill Streak 4 | 4 . 2 Combat Bots Only 2 | . . 2 Max Kills in Single Turn 1 | 1 . 1 Gunslinging . | . . . Exploded . | . . . Melee . | . . . Uniques/NPCs Destroyed . | . . . Combat | -11 -10 -10 -------- Run | Yrd Mat Sub Hostile Shots Fired 60 | . . 60 Missed 11 | . . 11 Hits 49 | . . 49 Projectile 49 | . . 49 Critical Strikes 3 | . . 3 Damage Taken 1139 | . . 1139 Core 270 | . . 270 Absorbed by Shields . | . . . Core Remaining (%) 100 | 100 . . Volleys Fired 43 | 19 . 24 Largest 2 | 2 . 2 Hottest 130 | 60 . 130 Shots Fired 78 | 38 . 40 Gun 75 | 38 . 37 Cannon . | . . . Launcher . | . . . Special 3 | . . 3 Kinetic 27 | 19 . 8 Thermal 51 | 19 . 32 Explosive . | . . . Electromagnetic . | . . . Robot Hit Streak 13 | 8 . 13 Robot Miss Streak 4 | 4 . 1 Penetration Max . | . . . Secondary Targets . | . . . Shots Hit Robots 50 | 22 . 28 Core Hits 20 | 9 . 11 Critical Kills . | . . . Critical Parts Destroyed . | . . . Critical Strikes 2 | . . 2 Burn 1 | . . 1 Destroy 1 | . . 1 Melee Attacks . | . . . Impact . | . . . Slashing . | . . . Piercing . | . . . Sneak Attacks . | . . . Combat Hostiles . | . . . Follow-up Attacks . | . . . Damage Inflicted 647 | 245 . 402 Guns 612 | 245 . 367 Cannons . | . . . Explosions . | . . . Melee . | . . . Ramming 5 | . . 5 Kinetic 186 | 97 . 89 Thermal 456 | 148 . 308 Explosive . | . . . Electromagnetic . | . . . Impact . | . . . Slashing . | . . . Piercing . | . . . Highest Corruption . | . . . Average Corruption . | . . . Corruption Purged . | . . . Corruption Blocked . | . . . Overload Shots . | . . . Overflow Damage . | . . . Projectiles . | . . . Explosions . | . . . Melee . | . . . Knockbacks . | . . . Impact . | . . . Kinetic . | . . . Secondary . | . . . Self-Inflicted Damage . | . . . Shots . | . . . Rammed 5 | . . 5 Targets Rammed 5 | . . 5 Kicked . | . . . Crushed . | . . . Highest Temperature 40 | 40 . 20 Average Temperature 20 | 20 . 12 Received Heat Transfer 45 | . . 45 Siege Activations . | . . . Martial Activations . | . . . Shielding Activations . | . . . Robots Disrupted . | . . . Combat Hostiles . | . . . Robots Corrupted . | . . . Combat Hostiles . | . . . Parts Fried . | . . . Impact Corruptions . | . . . Robots Melted . | . . . Combat Hostiles . | . . . Parts Melted 2 | . . 2 Heat Transferred 1225 | 350 . 875 Parts Sabotaged . | . . . Parts Stolen . | . . . Parts Stripped . | . . . Power Chain Reactions . | . . . Alert | -11 -10 -10 ------- Run | Yrd Mat Sub Maximum Alert Level . | . . . Low Security (%) 100 | 100 100 . Level 1 . | . . . Level 2 . | . . . Level 3 . | . . . Level 4 . | . . . Level 5 . | . . . High Security . | . . . Max Security . | . . . Peak Influence 30 | 15 30 . Initial . | . . . Average 3 | 3 2 . Influence Increases 95 | 25 30 40 Destroy 0b10 Robot/C 40 | . . 40 Destroy 0b10 Robot/NC 25 | 25 . . Select Force Hacks 30 | . 30 . Influence Decreases 95 | 25 30 40 Time Decay 95 | 25 30 40 Squads Dispatched 1 | . 1 . Investigation 1 | . 1 . Extermination . | . . . Reinforcement . | . . . Assault . | . . . Garrison . | . . . Intercept . | . . . Searches Triggered . | . . . Construction Impeded . | . . . Haulers Reinforced . | . . . Active Scanning Responses . | . . . Cargo Convoy Interrupts . | . . . Stealth | -11 -10 -10 --------- Run | Yrd Mat Sub Distress Signals 1 | . 1 . Communications Jammed . | . . . Distress Signals . | . . . Times Spotted 10 | . 2 8 Peak Tracking Total 2 | . 2 2 Tactical Retreats . | . . . Traps | -11 -10 -10 ------- Run | Yrd Mat Sub Traps Triggered 3 | . 1 2 Indirectly . | . . . Trap Hack Attempts . | . . . Triggered . | . . . Disarmed . | . . . Reprogrammed . | . . . Reused . | . . . Traps Extracted . | . . . Installed . | . . . Triggered . | . . . Machines | -11 -10 -10 ---------- Run | Yrd Mat Sub Machines Disabled 1 | . . 1 Max in Single Turn 1 | . . 1 Machines Repaired . | . . . Machines Dismantled . | . . . Machines Sabotaged . | . . . Overloaded Fab Kills . | . . . Hacking | -11 -10 -10 --------- Run | Yrd Mat Sub Machines Accessed 2 | . 1 1 Terminals . | . . . Fabricators . | . . . Repair Stations . | . . . Recycling Units 1 | . 1 . Scanalyzers . | . . . Garrison Access . | . . . Total Hacks 10 | . 1 9 Successful 10 | . 1 9 Failed . | . . . Catastrophic . | . . . Database Lockouts . | . . . Manual 1 | . 1 . Terminals . | . . . Fabricators . | . . . Repair Stations . | . . . Recycling Units 1 | . 1 . Scanalyzers . | . . . Garrison Access . | . . . Terminal Hacks 9 | . . 9 Record 8 | . . 8 Proto ID Catalog 1 | . . 1 Fabricator Hacks . | . . . Repair Station Hacks . | . . . Recycling Unit Hacks . | . . . Scanalyzer . | . . . Garrison Access Hacks . | . . . Unauthorized Hacks 1 | . 1 . Terminals . | . . . Fabricators . | . . . Repair Stations . | . . . Recycling Units 1 | . 1 . Tunnel 1 | . 1 . Scanalyzers . | . . . Garrison Access . | . . . Data Cores Recovered . | . . . Used . | . . . Hacking Detections . | . . . Full Trace Events . | . . . Feedback Events . | . . . Feedback Blocked . | . . . Robot Schematics Acquired . | . . . Robots Built . | . . . Authchips . | . . . Time . | . . . Total Robot Build Rating . | . . . Part Schematics Acquired . | . . . Parts Built . | . . . Authchips . | . . . Time . | . . . Total Part Build Rating . | . . . Part Studies Acquired . | . . . Parts Repaired . | . . . Time . | . . . Parts Recycled . | . . . Recycled Matter . | . . . Retrieved Matter . | . . . Retrieved Components . | . . . Parts Scanalyzed . | . . . Part Schematics Acquired . | . . . Parts Damaged . | . . . Bothacking | -11 -10 -10 ------------ Run | Yrd Mat Sub Used RIF Installer . | . . . Robots Hacked . | . . . Non-combat . | . . . Combat . | . . . Robot Hacks Applied . | . . . Relay Couplers Released . | . . . Fabnet Peak Effective % . | . . . Robots Rewired . | . . . Allies Hacked . | . . . Hacks Repelled . | . . . Allies | -11 -10 -10 -------- Run | Yrd Mat Sub Total Allies . | . . . Largest Group . | . . . Highest-Rated Group . | . . . Highest-Rated Ally . | . . . Total Orders . | . . . Ally Attacks . | . . . Total Damage . | . . . Kills . | . . . Allies Corrupted . | . . . Allies Melted . | . . . Intel | -11 -10 -10 ------- Run | Yrd Mat Sub Active Infowar (turns) 1255 | 84 208 963 Optics 1 | . . 1 Seismic 1254 | 84 208 962 Robot Analysis Total . | . . . Derelict Logs Recovered 3 | . . 3 Drone Launches . | . . . Drone Recoveries . | . . . Exploration | -11 -10 -10 ------------- Run | Yrd Mat Sub Turns Passed 1627 | 110 229 1288 Spaces Moved 1143 | 28 179 936 Core . | . . . Treads 9 | . . 9 Legs 1134 | 28 179 927 Wheels . | . . . Hover . | . . . Flight . | . . . Fastest Speed 120 | 120 120 120 Average Speed 120 | 120 120 120 Slowest Speed 160 | 120 120 160 Overloaded Moves . | . . . Propulsion Burnouts . | . . . Robots Hopped . | . . . Potential Cave-ins . | . . . Cave-ins Triggered . | . . . Exploration Rate (%) 27 | 3 22 56 Regions Visited 2 Branch Regions 1 Pre-discovered Areas 1 | . 1 . Known Exits Taken . | . . . Unknown Exits Taken 2 | 1 1 . Scrap Searched 1 | . . 1 Spaces Dug . | . . . Terrain Destroyed . | . . . Melee . | . . . Projectile . | . . . AOE . | . . . Terrain Rammed . | . . . Walls Destroyed . | . . . Machines Disabled . | . . . Actions | -11 -10 -10 --------- Run | Yrd Mat Sub Total 1317 | 69 193 1055 Wait 82 | 21 6 55 Move 1141 | 27 178 936 Hop . | . . . Pick Up 11 | 1 3 7 Fast Attach 7 | 1 2 4 Attach 6 | . 1 5 Detach 1 | . . 1 Swap 9 | . . 9 Drop 12 | . 3 9 Fire 43 | 19 . 24 Melee . | . . . Ram . | . . . Kick . | . . . Crush 5 | . . 5 Escape Stasis . | . . . Rewire . | . . . Trap . | . . . Miscellaneous . | . . . Route ------- -11/Scrapyard -10/Materials -10/Subcaves (discovered 3 exits: [*Mat] / [*Scr x2]) History --------- Turn | Location | Event 21 | -11/Scrapyard | Discovered new exit (range 3) 111 | -11/Scrapyard | Entered Materials 112 | -10/Materials | Met a group of wandering Federalists 253 | -10/Materials | Discovered new exit (range 3) 315 | -10/Materials | Build established: Mutant 340 | -10/Materials | Entered Subcaves 341 | -10/Subcaves | Ambushed by Subdwellers from Twisted Machinery 341 | -10/Subcaves | Continued accompanying wandering Federalists (4) 341 | -10/Subcaves | Approached by a straggling Scientist 352 | -10/Subcaves | Discovered new exit (range 8) 576 | -10/Subcaves | A swath of the cavern ceiling suddenly collapsed 610 | -10/Subcaves | Shifting Twisted Machinery released Sub. Monowheel 611 | -10/Subcaves | Shifting Twisted Machinery released Flamer 665 | -10/Subcaves | Learned Materials garrison access intel 958 | -10/Subcaves | Visited 4L-MR0's lab 1122 | -10/Subcaves | Found Rainbow Chip 1228 | -10/Subcaves | Learned 4 Materials zone layouts 1609 | -10/Subcaves | Core integrity fell below 50% 1617 | -10/Subcaves | Core integrity fell below 20% 1628 | -10/Subcaves | Destroyed by 6J-9LQ(R) with Subdweller Machine Gun Last Messages --------------- 01228_ Acquired derelict log, extracted data. Data stored: Materials zone layouts (x4). 01240_ Dropped Assault Rifle. 01240_ Acquired Sub. Laser. 01424_ Triggered Shrapnel Trap. 01424_ An expanding cloud of shrapnel blasts out in all directions. 01424_ Seismic Detector destroyed. 01446_ Triggered Piercing Trap. 01446_ Spikes shoot up from the floor. 01577_ CF-85F(R) suffers critical hit (Destroy). 01580_ Salvaging Laser destroyed. 01582_ Lgt. Ion Engine destroyed. 01586_ 6J-9LQ(R): "SUB#$%&!" 01590_ Aluminum Leg destroyed. 01592_ Sub. Laser destroyed. 01595_ Slammed into 6J-9LQ(R). 01605_ Sub. Laser destroyed. 01609_ Slammed into 6J-9LQ(R). 01617_ Lgt. Treads destroyed. Map ----- +----------------------------------------------------+ | ?????????????????????????????????????????????????? | | ?????????????????????????????????????????????????? | | ?????????????????????????????????????????????????? | | #????????????????????????????????????????????????? | | ##???????????????????????????????????????????????? | | ##?##???????????????????????????????????????????? | | ## ##??????????????????????????????????????????? | | #??????????????????????????????????????????? | | ######??????????????????????????????????????? | | #### ###????????????????????????????????????? | | ##?# ####?????????????????????????????????? | | #??# #########?????????????????????????? | | ##?## ## #%&&#####?????????????????????? | | ##?# ## *%=&" "##????????????????????? | | ### ### ### [[&%"""" "##???????????????????? | | # ######?# "[##&##"" ##??????????????????? | | # # # =##& # < #??????????????????? | | ## ### #??????????????????? | | ?# # # # ##?## #??????????????????? | | ?#### #############???# ##??????????????????? | | ????###???????????????# ####???????????????????? | | ??????????????????????## ##?????????????????????? | | ??????????????????????# #?????????????????????? | | ??????????????????????## #?????????????????????? | | ?????????????????????### ###????????????????????? | | ????????????????????## @ #????????????????????? | | ???????????????????## ##???????????????????? | | ??????????????????## #???????????????????? | | ?????????????????## #???????????????????? | | ????????????????## #???????????????????? | | ????????????????# ##???????????????????? | | ????????????????# #????????????????????? | | ????????????????# R #????????????????????? | | ????????????????## #????????????????????? | | ??????????######?# ## ##????????????????????? | | ?########## #### ## R#########?????????????? | | ? ## #?# ## # # ##????????????? | | ## #?# ### ## ^ ##???????????? | | #??## #######?# #???????????? | | #????##### #??????## # #???????????? | | #?????????# ##????## ###### #???????????? | | ##??####?## #???## """ #???????????? | | #### ### ###?# ##???????????? | | ### ##????????????? | | # #?????????????? | | #"""" #?????????????? | | ####### ##### ## #############?????????????? | | ??????####???# ######?????????????????????????? | | ?????????????# ##??????????????????????????????? | | ?????????????# ##???????????????????????????????? | +----------------------------------------------------+ Best States ------------- Heat Dissipation 39 Energy Generation 10 Energy Capacity 125 Matter Stores 300 Matter Capacity 300 Sight Range 16 Terrain Scan Density 10 Evasion (%) 55 Recoil Reduction 2 Item Schematics ----------------- None Robot Schematics ------------------ None Fabricated ------------ Nothing Repaired ---------- Nothing Studied --------- None Alien Tech Used ----------------- None Achievements -------------- Mistaken Identity Challenges ------------ None Game ------ Seed ArmorRegenerativeFacilitator Manual? 0 Play Time 00:22:39 Cumulative 255.7 hours Start 2026.08.31 @ 15:31:17 End 2026.08.31 @ 15:59:09 Sessions 1 Manual Loads 0 Difficulty Rogue Special Mode None Game No. 129 Rogue 129 Adventurer 0 Explorer 0 Win Type - Total 2 Types 2/0/0/0/0/0/0/0/0/0 Lore% 45 Gallery% 57 Achievement% 44 Wizard Run 0 Options --------- Layout 2 ASCII 0 Keyboard 0 Movement Numpad Keybinds 1 Fullscreen 1 Font 32/Terminus Map View 50x44 Zoom Use 0% Tactical HUD 1 Map Filters NONE Filters NONE Steam 1 RUN: 6e56fca4-b837-4e4d-b29e-afe687b58d9f